bitfinex/quotes_ETHUSD_20241120
["timestamp","ask_amount","ask_price","bid_price","bid_amount"]
[1732101518832,2.74121005,3090.2,3089.6,0.23934046]
[1732101519028,2.13221797,3090.3,3089.6,0.23934046]
[1732101519233,1.09645703,3090.2,3089.7,0.48577405]
[1732101519463,2.13221797,3090.3,3089.7,0.48577405]
[1732101519806,2.74218431,3090.2,3089.7,0.48577405]
[1732101520014,1.09687546,3090.1,3089.7,0.48577405]
[1732101520311,2.7419755,3090.0,3089.7,0.48577405]
[1732101520518,2.7519755,3090.0,3089.5,1.6184]
[1732101520883,0.8037,3089.8,3089.5,1.6184]
[1732101521212,1.32911797,3089.6,3089.5,1.6184]
[1732101521425,4.0716323,3089.6,3089.5,1.6184]
[1732101521701,2.74251433,3089.6,3089.5,1.6184]
[1732101522104,2.74396892,3089.6,3089.5,1.6184]
[1732101522470,4.73131524,3089.6,3089.5,1.6184]
[1732101523017,4.74131524,3089.6,3089.5,1.6184]
[1732101523671,4.9507902,3089.6,3089.5,1.6184]
[1732101524008,4.95079008,3089.6,3089.5,1.6184]
[1732101524307,4.95089519,3089.6,3089.5,1.6184]
[1732101524620,2.74396892,3089.6,3089.5,1.6184]
[1732101524914,4.73990262,3089.6,3089.5,1.78024]
[1732101525066,1.09871721,3089.6,3089.5,1.78024]
[1732101525503,1.32883767,3089.8,3089.5,1.78024]
[1732101525713,1.09900138,3089.7,3089.6,0.178024]
[1732101525915,1.32883767,3089.9,3089.6,0.178024]
[1732101526204,1.32883767,3089.9,3089.5,1.78024]
[1732101526205,1.32883767,3090.1,3089.7,0.1958264]
[1732101526404,2.74762227,3090.0,3089.7,0.1958264]
[1732101526582,1.32883767,3090.1,3089.7,0.1958264]
[1732101526787,1.09905905,3090.0,3089.7,0.1958264]
[1732101526988,1.32883767,3090.1,3089.7,0.1958264]
[1732101527173,2.74789725,3090.0,3089.7,0.1958264]
[1732101527367,1.32883767,3090.1,3089.7,0.1958264]
[1732101527595,2.7481275,3090.0,3089.7,0.1958264]
[1732101527806,1.32883767,3090.1,3089.7,0.1958264]
[1732101528011,4.0769518,3090.0,3089.7,0.1958264]
[1732101528224,1.32883767,3090.1,3089.7,0.1958264]
[1732101528505,2.74796338,3090.0,3089.7,0.1958264]
[1732101528709,1.32883767,3090.1,3089.7,0.1958264]
[1732101528913,2.74797465,3090.0,3089.7,0.1958264]
[1732101529073,1.32883767,3090.2,3089.7,0.1958264]
[1732101529276,4.0767865,3090.1,3089.7,0.1958264]
[1732101529586,1.09917953,3090.0,3089.7,0.1958264]
[1732101529772,1.32883767,3090.1,3089.7,0.1958264]
[1732101529975,1.09918598,3090.0,3089.7,0.1958264]
[1732101530173,1.32883767,3090.1,3089.7,0.1958264]
[1732101530623,1.32883767,3090.2,3089.7,0.1958264]
[1732101530811,1.09919726,3090.1,3089.7,0.1958264]
[1732101531110,1.32883767,3090.2,3089.7,0.1958264]
[1732101531286,1.09926925,3090.1,3089.7,0.1958264]
[1732101531614,1.32883767,3090.2,3089.7,0.1958264]
[1732101531829,1.32883767,3090.3,3089.7,0.1958264]
[1732101531974,2.74815471,3090.2,3089.7,0.1958264]
[1732101532316,1.32883767,3090.3,3089.8,1.6182]
[1732101532513,2.74820182,3090.2,3089.9,3.18140264]
[1732101532666,1.32883767,3090.3,3089.9,3.18140264]
[1732101532875,2.74819395,3090.2,3090.0,1.6181]
[1732101533073,1.09927758,3090.2,3090.0,1.6181]
[1732101533380,1.09927758,3090.2,3090.1,0.47995026]
[1732101533565,1.09927758,3090.2,3090.0,1.6181]
[1732101534173,1.32883767,3090.4,3090.0,1.6181]
[1732101534465,1.09912075,3090.3,3090.0,4.6181]
[1732101534764,1.32883767,3090.4,3090.0,4.6181]
[1732101534927,1.09917919,3090.3,3090.1,0.47995026]
[1732101535128,1.32883767,3090.4,3090.1,0.47995026]
[1732101535328,1.09908092,3090.3,3090.2,1.618]
[1732101535824,0.01,3090.6,3090.2,1.618]
[1732101536050,0.01,3090.6,3090.3,0.1618]
[1732101537421,0.7944,3090.8,3090.3,0.1618]
[1732101537625,0.01,3090.9,3090.3,0.1618]
[1732101537849,0.01,3090.9,3090.5,3.0]
[1732101538053,0.8176,3091.1,3090.7,3.0]
[1732101538364,0.8176,3091.1,3090.3,0.1618]
[1732101538671,1.32908727,3090.9,3090.3,0.1618]
[1732101538959,1.09898904,3090.8,3090.4,1.6179]
[1732101539266,1.32908727,3090.9,3090.5,0.17797]
[1732101539463,1.09873984,3090.8,3090.7,3.0]
[1732101539674,1.09873984,3090.8,3090.5,0.17797]
[1732101539828,1.32908727,3090.9,3090.6,0.179587]
[1732101540027,1.09868495,3090.8,3090.6,0.179587]
[1732101540270,1.32908727,3090.9,3090.6,0.179587]
[1732101540456,1.09867359,3090.8,3090.6,0.179587]
[1732101540676,1.32908727,3090.9,3090.6,0.179587]
[1732101541034,1.09868357,3090.8,3090.6,0.179587]
[1732101541258,1.34908727,3090.9,3090.4,1.6179]
[1732101541463,4.07530735,3090.8,3090.4,1.6179]
[1732101541633,4.07530735,3090.7,3090.4,1.6179]
[1732101541828,1.09848803,3090.6,3090.4,1.6179]
[1732101542050,1.32908727,3090.7,3090.4,1.6179]
[1732101542262,1.32908727,3090.8,3090.4,1.6179]
[1732101542461,1.09830143,3090.7,3090.4,1.6179]
[1732101542789,1.32908727,3090.8,3090.4,1.77969]
[1732101543101,1.09814199,3090.7,3090.4,1.77969]
[1732101543266,1.32908727,3090.8,3090.4,1.77969]
[1732101543463,1.33908727,3090.9,3090.4,1.77969]
[1732101543697,2.7447224,3090.8,3090.5,0.177969]
[1732101543900,1.32908727,3090.9,3090.6,3.0]
[1732101544185,1.09806392,3090.8,3090.5,0.177969]
[1732101544385,1.32908727,3090.9,3090.6,3.1795869]
[1732101544594,1.32908727,3091.0,3090.6,0.1795869]
[1732101544753,1.09788126,3090.9,3090.6,0.1795869]
[1732101544955,1.32908727,3091.0,3090.6,0.1795869]
[1732101545171,1.0978614,3090.9,3090.6,0.1795869]
[1732101545392,1.32908727,3091.0,3090.6,0.1795869]
[1732101545600,1.33908727,3091.1,3090.6,0.1795869]
[1732101545795,1.09765476,3091.0,3090.6,0.1795869]
[1732101546003,0.02,3091.1,3090.6,0.1795869]
[1732101546487,1.29908727,3091.2,3090.6,0.1795869]
[1732101546688,1.09741007,3091.1,3090.6,0.1795869]
[1732101546849,1.29908727,3091.2,3090.6,0.1795869]
[1732101547050,1.0974244,3091.1,3090.6,0.1795869]
[1732101547248,1.29908727,3091.2,3090.6,0.1795869]
[1732101547452,0.8119,3091.3,3090.6,0.1795869]
[1732101547684,2.74301195,3091.2,3090.6,0.1795869]
[1732101547885,0.8119,3091.3,3090.6,0.1795869]
[1732101548098,2.7430059,3091.2,3090.6,0.1795869]
[1732101548257,0.8119,3091.3,3090.6,0.1795869]
[1732101548459,2.74302607,3091.2,3090.6,0.1795869]
[1732101548687,1.99363091,3091.5,3090.6,0.1795869]
[1732101548867,2.7426398,3091.4,3090.7,0.42301245]
[1732101549054,0.8226,3091.6,3090.7,0.42301245]
[1732101549260,2.74299688,3091.5,3090.7,0.42301245]
[1732101549462,0.8226,3091.6,3090.7,0.42301245]
[1732101549668,1.09695644,3091.5,3090.7,0.42301245]
[1732101549896,0.8226,3091.6,3090.7,0.42301245]
[1732101550199,1.99363091,3091.9,3090.7,0.42301245]
[1732101550385,1.99363091,3091.9,3090.8,0.37449214]
[1732101550386,2.7428047,3091.8,3090.8,0.37449214]
[1732101550591,2.81453091,3092.0,3090.8,0.79750459]
[1732101550761,2.74211197,3091.9,3090.8,0.79750459]
[1732101550958,2.74211197,3091.8,3090.8,0.79750459]
[1732101551164,2.81453091,3092.0,3090.8,0.79750459]
[1732101551165,1.09684479,3091.7,3090.9,0.55]
[1732101551462,0.8209,3092.0,3090.9,0.55]
[1732101551660,2.74179456,3091.9,3090.9,0.55]
[1732101551861,0.8209,3092.0,3090.9,0.55]
[1732101552094,2.74179671,3091.9,3090.9,0.97301245]
[1732101552404,0.8209,3092.0,3090.9,0.97301245]
[1732101552619,2.74144908,3091.9,3090.8,0.37449214]
[1732101552899,2.74126657,3091.8,3091.0,1.6176]
[1732101553078,1.09655024,3091.7,3091.0,1.6176]
[1732101553276,2.74121248,3091.6,3091.0,1.6176]
[1732101553600,2.74097256,3091.5,3091.0,1.6176]
[1732101553781,0.7615,3091.3,3091.0,1.6176]
[1732101553983,0.7615,3091.3,3091.0,1.77936]
[1732101554165,0.7615,3091.3,3091.0,1.6176]
[1732101554364,0.7615,3091.1,3089.0,0.86210631]
[1732101554565,0.7754,3090.8,3089.0,1.63179097]
[1732101554801,2.74095228,3090.7,3089.0,1.63179097]
[1732101554999,0.7754,3090.8,3089.3,0.01]
[1732101555309,0.7754,3090.8,3089.5,3.405]
[1732101555509,0.7754,3090.8,3089.6,0.76968466]
[1732101555711,2.7412184,3090.7,3089.6,0.76968466]
[1732101555871,0.7754,3090.8,3089.1,0.4870791]
[1732101555872,0.7754,3090.5,3089.7,1.6183]
[1732101556065,1.09647972,3090.4,3089.7,1.6183]
[1732101556265,0.7754,3090.5,3089.7,1.6183]
[1732101558311,0.7754,3090.5,3089.7,1.99279214]
[1732101558511,0.7754,3090.5,3089.8,0.23879847]
[1732101558808,1.09686263,3090.4,3089.8,0.23879847]
[1732101559008,0.7754,3090.5,3089.8,0.23879847]
[1732101559211,1.09701072,3090.4,3089.8,0.23879847]
[1732101559536,2.10142699,3090.5,3089.9,0.18570985]
[1732101559668,0.7754,3090.5,3089.9,0.18570985]
[1732101561288,1.32602699,3090.6,3089.9,0.18570985]
[1732101561513,1.09744077,3090.5,3089.9,0.18570985]
[1732101561688,1.32602699,3090.6,3089.9,0.18570985]
[1732101561889,4.06977559,3090.5,3089.9,0.18570985]
[1732101562110,0.7813,3090.3,3089.7,1.6183]
[1732101565843,1.32602699,3090.5,3089.7,1.6183]
[1732101566049,1.32602699,3090.6,3090.0,3.0]
[1732101566332,4.07061567,3090.5,3090.1,0.3]
[1732101566493,1.32602699,3090.6,3089.8,0.39519252]
[1732101566690,1.09794752,3090.5,3089.9,0.20134925]
[1732101567004,1.32602699,3090.6,3089.9,1.81954925]
[1732101567208,1.09795245,3090.5,3089.9,1.6182]
[1732101567524,1.09816746,3090.4,3089.9,1.6182]
[1732101567693,1.32602699,3090.5,3089.9,1.6182]
[1732101567890,1.09813171,3090.4,3090.0,0.16182]
[1732101568093,1.32602699,3090.5,3090.0,3.16182]
[1732101568337,1.09834189,3090.4,3090.1,1.6181]
[1732101568537,1.32602699,3090.5,3090.1,2.096092]
[1732101568726,1.32602699,3090.5,3090.1,1.6181]
[1732101568727,1.09840412,3090.4,3090.1,1.6181]
[1732101568923,1.32602699,3090.5,3090.1,1.6181]
[1732101569105,1.09840118,3090.4,3090.1,1.6181]
[1732101569301,1.32602699,3090.5,3090.1,1.6181]
[1732101569563,2.74678038,3090.4,3090.2,0.177992]
[1732101569726,1.32602699,3090.5,3090.2,0.177992]
[1732101570039,4.07283469,3090.4,3090.2,0.177992]
[1732101570251,1.09872308,3090.3,3090.2,0.177992]
[1732101571141,1.32602699,3090.5,3090.2,1.795992]
[1732101571313,1.0992081,3090.4,3090.2,1.618]
[1732101571515,1.32602699,3090.5,3090.2,1.7798]
[1732101571829,2.7481554,3090.4,3090.2,1.7798]
[1732101572037,1.32602699,3090.5,3090.2,1.7798]
[1732101572210,2.74833263,3090.4,3090.2,1.7798]
[1732101572398,1.32602699,3090.5,3090.2,1.618]
[1732101572596,1.32602699,3090.3,3090.2,1.618]
[1732101572945,2.7483899,3090.3,3089.2,0.37449214]
[1732101573245,4.07782834,3090.2,3089.4,0.37449214]
[1732101573432,1.09935596,3090.1,3089.5,0.39519252]
[1732101573600,1.32943844,3090.2,3090.0,3.0]
[1732101573798,1.32943844,3090.3,3090.1,0.3]
[1732101573995,1.09933959,3090.2,3089.5,2.01339252]
[1732101574241,1.32943844,3090.4,3089.6,0.23878847]
[1732101574414,1.09962101,3090.3,3089.7,0.39519252]
[1732101574608,1.32943844,3090.4,3089.8,3.77533945]
[1732101574899,1.099672,3090.3,3089.9,4.6182]
[1732101575125,1.32943844,3090.4,3090.0,0.5788732]
[1732101575338,1.09964718,3090.3,3090.0,0.5788732]
[1732101575649,1.32943844,3090.4,3090.0,0.5788732]
[1732101575803,1.099605,3090.3,3090.0,0.5788732]
[1732101576146,1.32943844,3090.5,3090.1,0.51970732]
[1732101576341,2.74888298,3090.4,3090.1,0.51970732]
[1732101576554,1.32943844,3090.5,3090.1,0.51970732]
[1732101576702,1.09957661,3090.4,3090.1,0.51970732]
[1732101576913,1.32943844,3090.5,3090.2,1.618]
[1732101577219,1.32943844,3090.5,3090.3,0.21377073]
[1732101577417,1.09957543,3090.4,3090.3,0.21377073]
[1732101577608,1.32943844,3090.5,3090.4,0.51832457]
[1732101578009,2.97885753,3090.5,3090.4,0.51832457]
[1732101580420,1.64941909,3090.5,3090.4,0.51832457]
[1732101581008,2.97927041,3090.5,3090.4,0.51832457]
[1732101581253,1.64941909,3090.5,3090.4,0.51832457]
[1732101581452,8.37237686,3090.5,3090.4,0.51832457]
[1732101581732,6.89382894,3090.5,3089.0,0.85210631]
[1732101581940,0.8194,3089.7,3089.0,0.85210631]
[1732101582149,2.97896072,3089.6,3089.0,0.85210631]
[1732101582321,2.97896072,3089.5,3089.1,1.6185]
[1732101582645,1.32954163,3089.6,3089.2,0.24706063]
[1732101583152,1.32954163,3089.6,3089.3,1.6185]
[1732101585174,2.14894163,3089.7,3089.3,1.6185]
[1732101585327,1.64787139,3089.6,3089.3,1.6185]
[1732101585532,2.14894163,3089.7,3089.3,1.6185]
[1732101585761,1.64748461,3089.6,3089.3,1.78035]
[1732101586075,2.14894163,3089.7,3089.3,1.78035]
[1732101586289,2.97704814,3089.6,3089.3,1.6185]
[1732101586429,1.32954163,3089.6,3089.3,1.6185]
[1732101588327,1.32954163,3089.7,3089.3,1.6185]
[1732101588755,1.32954163,3089.8,3089.4,0.16185]
[1732101589028,2.97629066,3089.7,3089.4,0.16185]
[1732101589346,1.32954163,3089.7,3089.4,0.16185]
[1732101589553,1.32954163,3089.8,3089.4,0.16185]
[1732101589879,1.64653496,3089.7,3089.4,0.16185]
[1732101590170,1.32954163,3089.8,3089.4,0.16185]
[1732101590528,2.43897283,3089.7,3089.3,1.6185]
[1732101590750,2.97581446,3089.6,3089.3,1.6185]
[1732101590975,1.64621067,3089.5,3089.3,1.6185]
[1732101591149,1.32954163,3089.6,3089.3,1.6185]
[1732101591354,1.32954163,3089.6,3089.3,1.78035]
[1732101591776,2.12224163,3089.7,3089.3,1.78035]
[1732101592073,1.32954163,3089.7,3089.3,1.78035]
[1732101592425,1.99431245,3089.9,3089.3,1.78035]
[1732101592426,1.32954163,3089.9,3089.3,1.78035]
[1732101592629,1.32954163,3090.0,3089.4,0.178035]
[1732101593687,1.32954163,3090.1,3089.4,0.178035]
[1732101593972,1.99431245,3090.2,3089.5,0.1958385]
[1732101593973,1.32954163,3090.2,3089.5,0.1958385]
[1732101594333,2.12074163,3090.3,3089.5,0.1958385]
[1732101594670,1.32954163,3090.4,3089.5,0.1958385]
[1732101594885,1.64660637,3090.3,3089.5,0.1958385]
[1732101595087,1.32954163,3090.4,3089.6,0.35702246]
[1732101595695,1.64673692,3090.3,3089.6,0.35702246]
[1732101595910,1.32954163,3090.4,3089.6,0.35702246]
[1732101596191,1.64695811,3090.3,3089.6,0.35702246]
[1732101596362,1.32954163,3090.4,3089.6,0.35702246]
[1732101596560,2.97698343,3090.3,3089.6,0.35702246]
[1732101596766,1.32954163,3090.3,3089.6,0.35702246]
[1732101597174,2.97684726,3090.2,3089.6,0.35702246]
[1732101597511,4.90697575,3090.1,3089.6,0.35702246]
[1732101597797,1.09863945,3090.0,3089.5,0.1958385]
[1732101598096,2.16044163,3090.1,3089.5,0.1958385]
[1732101598290,1.32954163,3089.9,3089.6,1.6183]
[1732101598477,4.07679119,3089.8,3089.6,1.6183]
[1732101598659,1.99431245,3090.0,3089.6,1.6183]
[1732101598660,4.07676629,3089.7,3089.6,1.6183]
[1732101598870,2.74722466,3089.7,3089.6,1.6183]
[1732101599386,4.07676629,3089.7,3089.6,1.6183]
[1732101600390,5.55073711,3089.7,3089.6,1.6183]
[1732101600595,8.41420007,3089.7,3089.6,1.6183]
[1732101600953,7.60603722,3089.7,3089.6,1.6183]
[1732101601158,4.94695396,3089.7,3089.6,1.6183]
[1732101602688,4.74347721,3089.7,3089.6,1.6183]
[1732101603052,2.74826181,3089.7,3089.6,1.6183]
[1732101603279,4.07859229,3089.7,3089.6,1.6183]
[1732101604463,4.85199229,3089.7,3089.6,1.6183]
[1732101604692,2.74826181,3089.7,3089.6,1.6183]
[1732101604915,4.07860442,3089.7,3089.6,1.6183]
[1732101605263,4.08042004,3089.7,3089.6,1.6183]
[1732101605514,1.10003097,3089.7,3089.6,1.6183]
[1732101605680,1.33034261,3089.9,3089.6,1.6183]
[1732101605881,2.75023485,3089.8,3089.6,1.6183]
[1732101606117,1.33034261,3089.9,3089.6,1.78013]
[1732101606282,1.33034261,3090.0,3089.6,1.78013]
[1732101606495,1.10015134,3089.9,3089.6,1.78013]
[1732101606802,1.33034261,3090.0,3089.7,0.178013]
[1732101606982,1.09994667,3089.9,3089.7,0.178013]
[1732101607183,1.33034261,3090.0,3089.8,1.6182]
[1732101607392,3.9910421,3091.6,3090.3,1.3177297]
[1732101607581,1.64995909,3091.5,3090.4,1.01667684]
[1732101607779,0.84893788,3091.9,3090.4,1.01667684]
[1732101608007,3.85017318,3091.8,3090.4,1.01667684]
[1732101608180,1.65007422,3091.7,3090.4,1.01667684]
[1732101608380,1.81508164,3091.6,3090.5,0.49777224]
[1732101608585,1.65007422,3091.5,3090.6,0.44644279]
[1732101608918,0.84893788,3091.9,3090.8,3.0]
[1732101609076,3.84760831,3091.8,3090.6,0.94421503]
[1732101609281,2.11862961,3091.7,3090.6,0.94421503]
[1732101609624,1.64897499,3091.6,3090.8,3.0]
[1732101609876,1.6480662,3091.5,3090.4,0.46497195]
[1732101610015,2.19729863,3091.8,3090.4,0.46497195]
[1732101610215,1.64791674,3091.7,3090.5,4.6179]
[1732101610448,1.64791674,3091.6,3090.5,2.05945607]
[1732101610666,0.8085,3091.9,3090.5,5.05945607]
[1732101610817,1.64751202,3091.8,3090.5,5.05945607]
[1732101611022,1.64751202,3091.7,3090.5,5.05945607]
[1732101611255,1.64751202,3091.6,3090.6,3.55572283]
[1732101611459,0.8489372,3091.9,3090.6,3.55572283]
[1732101611665,1.64712978,3091.8,3090.7,5.47931789]
[1732101611970,1.64712978,3091.7,3090.7,1.6178]
[1732101612265,1.64712978,3091.6,3090.7,1.6178]
[1732101612468,0.8489372,3091.9,3090.7,2.12373561]
[1732101612627,0.8147,3091.7,3090.7,1.6178]
[1732101612830,0.8247,3091.5,3090.7,1.6178]
[1732101613049,0.8247,3091.3,3090.7,1.6178]
[1732101613352,0.8047,3091.1,3089.5,0.44155607]
[1732101613570,0.8047,3091.1,3089.6,0.49777224]
[1732101613571,1.64691752,3091.0,3089.6,0.49777224]
[1732101613883,1.05590631,3091.1,3089.7,0.44155607]
[1732101614087,1.68698129,3091.0,3089.7,0.44155607]
[1732101614379,1.64653387,3090.9,3090.1,3.0]
[1732101614595,0.8047,3091.1,3090.2,0.3]
[1732101614758,1.64662404,3091.0,3090.2,0.3]
[1732101614940,1.64662404,3090.9,3090.2,0.3]
[1732101615284,0.8047,3091.1,3090.3,0.33]
[1732101615459,1.64652015,3091.0,3089.7,0.93932831]
[1732101615656,0.8047,3091.1,3089.7,0.93932831]
[1732101615859,1.64652934,3091.0,3089.7,0.93932831]
[1732101616056,0.8047,3091.1,3089.7,0.93932831]
[1732101616257,1.68694942,3091.0,3089.7,0.93932831]
[1732101616457,1.64643996,3090.9,3089.7,0.59646907]
[1732101616659,3.18234719,3091.1,3090.3,3.0]
[1732101616872,1.64648158,3091.0,3089.7,0.59646907]
[1732101617079,1.64648158,3090.9,3089.7,0.59646907]
[1732101617311,2.83637669,3091.1,3089.7,1.03802514]
[1732101617487,2.97392371,3091.0,3089.7,1.03802514]
[1732101617791,1.68691453,3090.9,3089.7,1.03802514]
[1732101618090,1.36790364,3090.9,3089.7,0.93932831]
[1732101618605,1.32745641,3090.9,3090.2,3.0]
[1732101618894,1.32745641,3090.9,3089.7,0.93932831]
[1732101619197,1.32745641,3090.9,3090.2,3.0]
[1732101619398,1.32745641,3090.9,3090.3,0.3]
[1732101619563,1.32745641,3090.9,3089.8,0.44155607]
[1732101619755,1.32745641,3090.9,3090.2,3.0]
[1732101620083,1.32745641,3090.9,3089.8,0.93932831]
[1732101620282,1.32745641,3091.0,3090.2,3.0]
[1732101620490,1.64641918,3090.9,3090.3,0.3]
[1732101620651,1.32745641,3091.0,3090.3,0.3]
[1732101620851,1.64647778,3090.9,3090.3,0.3]
[1732101621083,1.32745641,3091.0,3090.3,0.3]
[1732101621294,1.64703356,3090.9,3090.3,0.3]
[1732101621492,1.32745641,3091.0,3090.3,0.3]
[1732101621699,3.01498295,3090.9,3089.9,0.49777224]
[1732101621899,3.01498295,3090.9,3090.2,3.0]
[1732101621900,0.7884,3090.8,3090.2,3.0]
[1732101622194,2.11585641,3090.8,3090.3,0.3]
[1732101622358,2.11585641,3090.8,3089.8,0.49777224]
[1732101622888,0.7985,3090.5,3089.4,0.33633612]
[1732101623056,0.7985,3090.5,3088.1,0.45155607]
[1732101623057,0.7985,3090.1,3088.1,0.45155607]
[1732101623408,0.7985,3089.9,3088.1,0.44155607]
[1732101623713,0.7985,3089.9,3088.2,4.28976081]
[1732101623911,0.7985,3089.9,3088.3,0.01]
[1732101624064,0.7985,3089.9,3088.4,1.48459689]
[1732101624263,0.7985,3089.9,3088.5,3.0]
[1732101624463,0.7985,3089.9,3088.6,2.06005607]
[1732101624675,0.7985,3089.9,3088.7,3.0]
[1732101625003,0.7985,3089.9,3088.8,3.44155607]
[1732101625160,0.7985,3089.9,3088.9,1.6187]
[1732101625361,0.7985,3089.9,3089.0,0.50602561]
[1732101625696,0.7985,3089.9,3089.1,1.6186]
[1732101626199,2.14425641,3090.3,3089.1,1.6186]
[1732101626396,0.8168,3090.3,3089.2,3.44155607]
[1732101626618,0.8168,3090.3,3089.3,0.55113608]
[1732101626778,0.8168,3090.3,3089.3,0.99269215]
[1732101628108,0.8168,3090.3,3089.4,0.44155607]
[1732101628303,0.8168,3090.3,3089.4,5.05995607]
[1732101628472,0.8168,3090.3,3089.5,3.60622969]
[1732101628908,0.7954,3090.6,3089.5,3.60622969]
[1732101629225,0.7954,3090.6,3089.6,0.89276081]
[1732101631186,0.7954,3090.6,3089.7,4.6183]
[1732101631390,0.7954,3090.6,3089.8,0.55110608]
[1732101631772,0.7954,3090.6,3089.9,1.6182]
[1732101636778,1.36790445,3090.7,3089.9,1.6182]
[1732101636925,0.8314,3090.6,3089.9,5.05975607]
[1732101637125,0.8314,3090.6,3090.0,0.21693061]
[1732101639376,0.8314,3090.6,3090.0,0.21693061]
[1732101639579,0.8314,3090.6,3090.1,0.18351306]
[1732101641377,2.19930457,3090.6,3089.9,1.6182]
[1732101641852,2.15885641,3090.6,3089.9,1.6182]
[1732101642387,1.64808682,3090.5,3089.9,1.6182]
[1732101642548,2.15885641,3090.6,3090.0,0.16182]
[1732101643375,1.64794774,3090.5,3090.0,0.16182]
[1732101643584,2.15885641,3090.6,3090.0,0.16182]
[1732101643769,1.64792162,3090.5,3090.0,0.16182]
[1732101644077,2.15885641,3090.6,3090.0,0.16182]
[1732101644452,2.19930601,3090.6,3090.0,0.16182]
[1732101645041,2.15885641,3090.6,3090.0,0.16182]
[1732101645238,2.15885641,3090.6,3090.1,0.178002]
[1732101646056,0.8314,3090.6,3090.1,0.178002]
[1732101646479,2.08495641,3090.8,3090.1,0.178002]
[1732101646678,0.7575,3090.8,3090.1,0.178002]
[1732101646862,0.7575,3090.8,3090.2,0.75935627]
[1732101647199,1.32745641,3091.1,3090.2,0.75935627]
[1732101647549,0.7575,3091.0,3090.2,0.75935627]
[1732101647726,2.08495641,3091.0,3090.2,0.75935627]
[1732101647895,0.7575,3091.0,3090.2,0.75935627]
[1732101648333,2.08495641,3091.0,3090.2,0.75935627]
[1732101651351,1.32745641,3091.0,3090.2,0.75935627]
[1732101651855,1.32745641,3091.1,3090.2,0.75935627]
[1732101652036,1.65001406,3091.0,3090.2,0.75935627]
[1732101652236,1.32745641,3091.1,3090.2,0.75935627]
[1732101652437,1.65004602,3091.0,3090.3,1.618]
[1732101652641,1.32745641,3091.1,3090.4,3.9792917]
[1732101653509,1.32745641,3091.2,3090.4,3.9792917]
[1732101653715,1.32745641,3091.2,3090.5,0.55972917]
[1732101654129,2.09935641,3091.3,3090.5,0.55972917]
[1732101654343,1.65093601,3091.2,3090.5,0.55972917]
[1732101654561,1.32745641,3091.2,3090.5,0.55972917]
[1732101654763,1.32745641,3091.2,3090.6,0.40012852]
[1732101655327,1.32745641,3091.2,3090.7,1.6178]
[1732101657161,2.09935641,3091.3,3090.7,1.6178]
[1732101657529,1.65129067,3091.2,3090.7,1.6178]
[1732101657725,1.32745641,3091.3,3090.8,0.16178]
[1732101657927,1.32745641,3091.4,3090.8,0.16178]
[1732101658125,2.75763325,3091.6,3090.8,0.16178]
[1732101658126,1.32745641,3091.5,3090.9,0.22211361]
[1732101658332,1.32745641,3091.6,3090.9,5.28136968]
[1732101658656,1.99123325,3091.7,3091.0,0.57325744]
[1732101658657,1.32745641,3091.7,3091.0,0.57325744]
[1732101659069,2.09385641,3091.8,3091.0,0.57325744]
[1732101659371,1.65141489,3091.7,3091.0,0.57325744]
[1732101659674,1.32745641,3091.9,3091.1,0.54130711]
[1732101659858,2.13428594,3092.0,3091.1,0.98286318]
[1732101660051,2.13428594,3092.0,3091.2,0.39828632]
[1732101660052,1.65095517,3091.9,3091.2,0.39828632]
[1732101660257,2.13428594,3092.0,3091.2,0.39828632]
[1732101660440,1.65096168,3091.9,3091.2,0.39828632]
[1732101660623,2.13428594,3092.0,3091.2,0.39828632]
[1732101660824,1.6509555,3091.9,3091.2,0.39828632]
[1732101661062,2.13428594,3092.0,3091.2,0.39828632]
[1732101661236,2.13428594,3092.0,3090.9,1.6177]
[1732101661542,0.80682953,3092.0,3090.9,1.6177]
[1732101661838,1.32745641,3092.2,3091.0,3.99155607]
[1732101662023,1.32745641,3092.2,3091.1,0.94574608]
[1732101662225,1.32745641,3092.3,3091.2,0.89276081]
[1732101662502,1.32745641,3092.4,3091.2,0.89276081]
[1732101662774,0.8172,3092.5,3091.3,3.51614069]
[1732101662940,0.8172,3092.5,3091.4,0.44155607]
[1732101663270,1.99123325,3092.7,3091.4,0.44155607]
[1732101663271,1.32745641,3092.7,3091.5,0.44089015]
[1732101663473,1.32745641,3092.7,3091.5,1.32977041]
[1732101663791,0.8172,3093.0,3091.6,4.43888026]
[1732101663928,0.04041842,3092.9,3091.6,4.43888026]
[1732101664129,0.04041842,3092.9,3091.7,0.78358803]
[1732101664367,0.04041842,3092.9,3091.7,2.83846355]
[1732101664580,0.04041842,3092.9,3091.8,3.43767552]
[1732101664939,0.04041842,3092.9,3091.9,1.6171]
[1732101666385,0.8172,3093.0,3092.0,0.43767552]
[1732101666616,0.8172,3093.0,3092.0,3.94315307]
[1732101666921,0.01,3093.6,3092.4,0.01]
[1732101666922,1.32745641,3093.6,3092.4,0.01]
[1732101667082,0.04040491,3093.7,3092.5,1.14630384]
[1732101667422,0.04040735,3093.9,3092.6,4.6168]
[1732101667584,0.1289,3094.0,3092.7,0.57631038]
[1732101667779,0.7507,3093.9,3092.7,4.0339859]
[1732101668012,0.7507,3093.9,3092.8,4.6167]
[1732101668215,0.1289,3094.0,3092.9,4.32274411]
[1732101668365,0.1289,3094.0,3092.9,0.45767552]
[1732101670616,0.1289,3094.0,3093.0,1.6166]
[1732101670819,0.1289,3094.0,3093.0,2.07427552]
[1732101670966,0.1289,3094.0,3093.6,3.0]
[1732101671573,0.1289,3094.0,3093.1,3.7037659]
[1732101671772,0.1289,3094.0,3093.1,4.09039422]
[1732101671974,0.1289,3094.0,3093.2,1.6164]
[1732101672174,0.1289,3094.0,3093.3,1.02835494]
[1732101672374,0.1289,3094.0,3093.3,4.02835494]
[1732101672594,0.1289,3094.0,3093.4,4.6163]
[1732101672794,0.1289,3094.0,3093.4,5.07397552]
[1732101673514,0.1289,3094.0,3093.4,5.46060384]
[1732101673722,0.1289,3094.0,3093.5,0.60312833]
[1732101674591,0.9175,3094.0,3093.5,0.60312833]
[1732101674794,0.04040386,3093.9,3093.4,1.6163]
[1732101674990,0.9175,3094.0,3093.4,1.6163]
[1732101675341,0.04040767,3093.9,3093.4,1.6163]
[1732101676144,0.8261,3093.8,3093.4,1.6163]
[1732101676303,0.8261,3093.6,3092.1,0.45767552]
[1732101676637,0.04041387,3093.5,3092.1,0.45767552]
[1732101676821,0.8261,3093.4,3092.1,0.45767552]
[1732101677138,0.59041885,3093.3,3092.1,0.45767552]